fUSD/lending_fUSD_20260408
["ID","MTS","AMOUNT","RATE_DAILY","PERIOD"]
[420018712,1775620241773,-358.18775754,0.00012052,2]
[420018713,1775620241783,-500.0,0.0001211,2]
[420018714,1775620241793,-5278.00743468,0.00012111,2]
[420018715,1775620241802,-200.0,0.0001212,2]
[420018716,1775620241812,-1243.57659104,0.0001212,2]
[420018717,1775620241821,-1000.0,0.00012121,2]
[420018718,1775620241831,-1000.0,0.00012121,2]
[420018719,1775620241840,-1000.0,0.00012121,2]
[420018720,1775620241850,-1000.0,0.00012121,2]
[420018721,1775620241859,-1000.0,0.00012121,2]
[420018722,1775620241869,-1000.0,0.00012121,2]
[420018723,1775620241879,-1037.33935184,0.00012121,2]
[420018724,1775620241889,-629.56,0.00012126,2]
[420018725,1775620241898,-500.0,0.00012126,2]
[420018726,1775620241907,-151.0,0.00012149,2]
[420018727,1775620241916,-364.52194489,0.00012165,2]
[420018728,1775620241926,-166.66,0.00012177,2]
[420018729,1775620241935,-2000.0,0.00012252,2]
[420018730,1775620241945,-4615.25051736,0.00012264,2]
[420018731,1775620241955,-500.0,0.00012274,2]
[420018732,1775620241964,-195.0,0.00012393,2]
[420018733,1775620241974,-375.99491046,0.00012393,2]
[420018734,1775620241984,-250.0,0.00012393,2]
[420018735,1775620241994,-195.0,0.00012393,2]
[420018736,1775620242004,-5000.0,0.00012398,2]
[420018737,1775620242014,-276.00185502,0.00012398,2]
[420018738,1775620242023,-193.41865489,0.00012398,2]
[420018739,1775620242032,-5000.0,0.00012398,2]
[420018740,1775620242042,-600.0,0.00012398,2]
[420018741,1775620242051,-300.60862761,0.00012398,2]
[420018742,1775620242061,-250.0,0.00012398,2]
[420018743,1775620242071,-318.26,0.000124,2]
[420018744,1775620242081,-500.0,0.000124,2]
[420018745,1775620242091,-629.56,0.000124,2]
[420018746,1775620242101,-251.977004,0.00012415,2]
[420018747,1775620242111,-160.0,0.00012415,2]
[420018748,1775620242120,-522.065927,0.00012415,2]
[420018749,1775620242130,-884.131854,0.00012415,2]
[420018750,1775620242140,-160.0,0.00012415,2]
[420018751,1775620242151,-637.791575,0.00012415,2]
[420018752,1775620242160,-1115.583151,0.00012415,2]
[420018753,1775620242172,-586.0,0.00012438,2]
[420018754,1775620242182,-7993.0059043,0.00012461,2]
[420018755,1775620242192,-21349.29130678,0.00012461,2]
[420018756,1775620242203,-1680.0,0.00012477,2]
[420018757,1775620242213,-195.473071,0.00012487,2]
[420018758,1775620242223,-415.628958,0.00012487,2]
[420018759,1775620242233,-160.0,0.00012487,2]
[420018760,1775620242242,-1623.877663,0.00012487,2]
[420018761,1775620242253,-3087.755326,0.00012487,2]
[420018762,1775620242263,-255.0,0.00012507,2]
[420018763,1775620242274,-5000.0,0.00012549,2]
[420018764,1775620242284,-166.66,0.00012566,2]
[420018765,1775620242294,-5000.0,0.00012587,2]
[420018766,1775620242304,-600.0,0.00012587,2]
[420018767,1775620242313,-195.0,0.00012587,2]
[420018768,1775620242323,-195.0,0.00012588,2]
[420018769,1775620242332,-1289.58892491,0.00012668,2]
[420018770,1775620242342,-1515.28558372,0.00012668,2]
[420018771,1775620242352,-1500.0,0.00012668,2]
[420018772,1775620242361,-1500.0,0.00012668,2]
[420018773,1775620242370,-1500.0,0.00012668,2]
[420018774,1775620242380,-893.05427862,0.00012668,2]
[420018775,1775620242390,-1500.0,0.00012668,2]
[420018776,1775620242400,-500.0,0.00012674,2]
[420018777,1775620242410,-629.56,0.00012674,2]
[420018778,1775620242420,-5278.00743468,0.00012742,2]
[420018779,1775620242430,-578.20924308,0.00012759,2]
[420018780,1775620242440,-1235.18214925,0.00012759,2]
[420018781,1775620242451,-500.0,0.00012759,2]
[420018782,1775620242460,-431.0128461,0.00012759,2]
[420018783,1775620242470,-151.0,0.00012759,2]
[420018784,1775620242480,-743.50770149,0.00012759,2]
[420018785,1775620242490,-174.61919141,0.00012759,2]
[420018786,1775620242500,-170.0,0.00012759,2]
[420018787,1775620242510,-170.0,0.00012759,2]
[420018788,1775620242520,-170.0,0.00012759,2]
[420018789,1775620242530,-170.0,0.00012759,2]
[420018790,1775620242540,-170.0,0.00012759,2]
[420018791,1775620242550,-170.0,0.00012759,2]
[420018792,1775620242560,-170.0,0.00012759,2]
[420018793,1775620242569,-505.73279232,0.00012759,2]
[420018794,1775620242579,-591.41950389,0.00012759,2]
[420018795,1775620242589,-170.0,0.00012759,2]
[420018796,1775620242599,-170.0,0.00012759,2]
[420018797,1775620242608,-170.0,0.00012759,2]
[420018798,1775620242618,-170.0,0.00012759,2]
[420018799,1775620242628,-170.0,0.00012759,2]
[420018800,1775620242637,-170.0,0.00012759,2]
[420018801,1775620242647,-170.0,0.00012759,2]
[420018802,1775620242657,-170.0,0.00012759,2]
[420018803,1775620242667,-406.49810817,0.00012767,2]
[420018804,1775620242677,-16351.8560908,0.00012772,2]
[420018805,1775620242687,-150.0,0.000128,2]
[420018806,1775620242697,-500.0,0.00012814,2]
[420018807,1775620242707,-151.0,0.00012814,2]
[420018808,1775620242717,-409.3,0.00012817,2]
[420018810,1775620242726,-179.44,0.00012823,2]
[420018812,1775620242736,-500.0,0.00012869,2]
[420018813,1775620242744,-151.0,0.00012869,2]
[420018814,1775620242755,-3300.0,0.000129,4]
[420018815,1775620242764,-722.0,0.00012922,5]
[420018816,1775620242774,-500.0,0.00012924,2]
[420018817,1775620242784,-151.0,0.00012924,2]
[420018818,1775620242793,-503.45185304,0.00012948,2]
[420018819,1775620242803,-629.56,0.00012948,2]
[420018820,1775620242812,-7993.0059043,0.00012953,2]
[420018821,1775620242822,-21349.29130678,0.00012953,2]
[420018822,1775620242831,-166.66,0.00012956,2]
[420018823,1775620242840,-500.0,0.00012979,2]
[420018824,1775620242849,-151.0,0.00012979,2]
[420018825,1775620242858,-318.26,0.0001299,2]
[420018826,1775620242868,-81454.46287592,0.00012999,2]
[420018827,1775620242878,-250.0,0.00013,2]
[420018828,1775620242887,-500.0,0.00013034,2]
[420018829,1775620242897,-151.0,0.00013034,2]
[420018830,1775620242907,-711.908082,0.00013036,2]
[420018831,1775620242917,-1304.573677,0.00013036,2]
[420018832,1775620242928,-3620.21391383,0.0001305,2]
[420018833,1775620242938,-9175.92150407,0.00013052,2]
[420018834,1775620242949,-500.0,0.00013089,2]
[420018837,1775620242958,-151.0,0.00013089,2]
[420018838,1775620242968,-270.3840652,0.00013098,2]
[420018839,1775620242979,-932.37378362,0.00013098,2]
[420018840,1775620242989,-746.45398956,0.00013107,2]
[420018841,1775620242998,-188.922253,0.00013112,2]
[420018842,1775620243010,-2214.378631,0.00013112,2]
[420018843,1775620243021,-500.0,0.00013144,2]
[420018844,1775620243031,-151.0,0.00013144,2]
[420018845,1775620243041,-82053.9384215,0.00013151,2]
[420018846,1775620243051,-151.0,0.00013152,2]
[420018847,1775620243061,-151.0,0.00013152,2]
[420018848,1775620243072,-151.0,0.00013152,2]
[420018849,1775620243082,-151.0,0.00013152,2]
[420018850,1775620243093,-500.0,0.00013199,2]
[420018851,1775620243102,-151.0,0.00013199,2]
[420018852,1775620243112,-1478.24680363,0.00013207,2]
[420018853,1775620243124,-706.98184486,0.00013216,2]
[420018854,1775620243135,-2003.75016468,0.00013216,2]
[420018855,1775620243145,-1503.61823881,0.00013216,2]
[420018856,1775620243155,-1502.00876238,0.00013216,2]
[420018857,1775620243165,-1001.79789242,0.00013216,2]
[420018858,1775620243176,-361.48,0.0001322,2]
[420018859,1775620243187,-629.56,0.00013222,2]
[420018860,1775620243198,-500.0,0.00013254,2]
[420018861,1775620243208,-151.0,0.00013254,2]
[420018862,1775620243218,-898.0,0.00013306,5]
[420018863,1775620243228,-327115.3585948,0.00013307,2]
[420018864,1775620243238,-151.0,0.00013307,2]
[420018865,1775620243248,-152.393342,0.00013307,2]
[420018866,1775620243260,-151.0,0.00013307,2]
[420018867,1775620243270,-153.51936,0.00013307,2]
[420018868,1775620243281,-151.0,0.00013307,2]
[420018869,1775620243291,-151.0,0.00013307,2]
[420018870,1775620243302,-151.0,0.00013307,2]
[420018871,1775620243312,-151.0,0.00013307,2]
[420018872,1775620243322,-151.0,0.00013307,2]
[420018873,1775620243333,-151.0,0.00013307,2]
[420018874,1775620243343,-151.0,0.00013307,2]
[420018875,1775620243353,-151.0,0.00013307,2]
[420018876,1775620243363,-1280.88388878,0.00013307,2]
[420018877,1775620243373,-771.01748645,0.00013307,2]
[420018878,1775620243384,-181.08010149,0.00013307,2]
[420018879,1775620243395,-500.0,0.00013309,2]
[420018880,1775620243405,-151.0,0.00013309,2]
[420018881,1775620243414,-166.66,0.00013345,2]
[420018882,1775620243424,-500.0,0.00013364,2]
[420018883,1775620243434,-151.0,0.00013364,2]
[420018884,1775620243445,-5278.00743468,0.00013374,2]
[420018885,1775620243455,-455.85546511,0.00013394,2]
[420018886,1775620243465,-373.78604395,0.00013394,2]
[420018887,1775620243475,-230.05,0.00013411,2]
[420018888,1775620243485,-500.0,0.00013419,2]
[420018889,1775620243495,-151.0,0.00013419,2]
[420018890,1775620243505,-3240.0,0.00013425,2]
[420018891,1775620243516,-7993.0059043,0.00013444,2]
[420018892,1775620243526,-21349.29130678,0.00013444,2]
[420018893,1775620243536,-500.0,0.00013474,2]
[420018894,1775620243547,-151.0,0.00013474,2]
[420018895,1775620243557,-629.61785208,0.00013496,2]
[420018896,1775620243567,-5293.08034556,0.000135,7]
[420018897,1775620243577,-1000.0,0.000135,2]
[420018898,1775620243588,-151.0,0.00013529,2]
[420018899,1775620243598,-171.98,0.00013536,2]
[420018900,1775620243609,-151.0,0.00013539,2]
[420018901,1775620243619,-318.26,0.00013581,2]
[420018902,1775620243629,-1596.72833552,0.00013599,2]
[420018903,1775620243639,-2000.0,0.00013614,2]
[420018904,1775620243650,-500.0,0.00013673,2]
[420018905,1775620243660,-361.44642401,0.00013673,2]
[420018906,1775620243670,-433.0,0.00013674,2]
[420018907,1775620243680,-5888.0,0.00013692,2]
[420018908,1775620243691,-500.0,0.00013698,2]
[420018909,1775620243701,-500.0,0.00013698,2]
[420018910,1775620243712,-500.0,0.00013698,2]
[420018911,1775620243722,-490.0,0.00013698,2]
[420018912,1775620243733,-500.0,0.00013698,2]
[420018913,1775620243743,-500.0,0.00013698,2]
[420018914,1775620244062,-198.06604293,0.00013698,2]
[420018915,1775620244073,-500.0,0.00013698,2]
[420018916,1775620244084,-500.0,0.00013698,2]
[420018917,1775620244094,-500.0,0.00013698,2]
[420018918,1775620244104,-500.03954585,0.00013698,2]
[420018919,1775620244115,-500.0,0.00013698,2]
[420018920,1775620244124,-500.0,0.00013698,2]
[420018921,1775620244134,-500.0,0.00013698,2]
[420018922,1775620244144,-500.0,0.00013698,2]
[420018923,1775620244154,-500.0,0.00013698,2]
[420018924,1775620244163,-500.0,0.00013698,2]
[420018925,1775620244173,-500.0,0.00013698,2]
[420018926,1775620244184,-500.0,0.00013698,2]
[420018927,1775620244193,-500.0,0.00013698,2]
[420018928,1775620244203,-500.0,0.00013698,2]
[420018929,1775620244213,-500.0,0.00013698,2]
[420018930,1775620244223,-500.0,0.00013698,2]
[420018931,1775620244232,-500.0,0.00013698,2]
[420018932,1775620244242,-500.0,0.00013698,2]
[420018933,1775620244251,-500.0,0.00013698,2]
[420018934,1775620244261,-500.0,0.00013698,2]
[420018935,1775620244271,-500.0,0.00013698,2]
[420018936,1775620244281,-500.0,0.00013698,2]
[420018937,1775620244292,-500.0,0.00013698,2]
[420018938,1775620244301,-500.0,0.00013698,2]
[420018939,1775620244312,-500.0,0.00013698,2]
[420018940,1775620244323,-500.0,0.00013698,2]
[420018941,1775620244333,-500.14075642,0.00013698,2]
[420018942,1775620244343,-500.0,0.00013698,2]
[420018943,1775620244352,-500.0,0.00013698,2]
[420018944,1775620244361,-500.0,0.00013698,2]
[420018945,1775620244371,-500.0,0.00013698,2]
[420018946,1775620244381,-500.0,0.00013698,2]
[420018947,1775620244391,-500.0,0.00013698,2]
[420018948,1775620244401,-500.0,0.00013698,2]
[420018949,1775620244411,-500.0,0.00013698,2]
[420018950,1775620244420,-500.0,0.00013698,2]
[420018951,1775620244430,-500.0,0.00013698,2]
[420018952,1775620244439,-500.0,0.00013698,2]
[420018953,1775620244448,-504.74596653,0.00013698,2]
[420018954,1775620244457,-500.0,0.00013698,2]
[420018955,1775620244467,-500.0,0.00013698,2]
[420018956,1775620244477,-500.0,0.00013698,2]
[420018957,1775620244487,-500.0,0.00013698,2]
[420018958,1775620244497,-500.0,0.00013698,2]
[420018959,1775620244506,-500.0,0.00013698,2]
[420018960,1775620244515,-500.0,0.00013698,2]
[420018961,1775620244526,-500.0,0.00013698,2]
[420018962,1775620244535,-500.0,0.00013698,2]
[420018963,1775620244544,-500.0,0.00013698,2]
[420018964,1775620244554,-500.0,0.00013698,2]
[420018965,1775620244564,-500.0,0.00013698,2]
[420018966,1775620244573,-500.0,0.00013698,2]
[420018967,1775620244583,-500.0,0.00013698,2]
[420018968,1775620244593,-500.0,0.00013698,2]
[420018969,1775620244603,-500.0,0.00013698,2]
[420018970,1775620244613,-500.0,0.00013698,2]
[420018971,1775620244622,-500.0,0.00013698,2]
[420018972,1775620244632,-500.0,0.00013698,2]
[420018973,1775620244642,-499.6872898,0.00013698,2]
[420018974,1775620244651,-500.0,0.00013698,2]
[420018975,1775620244660,-500.0,0.00013698,2]
[420018976,1775620244670,-500.0,0.00013698,2]
[420018977,1775620244680,-500.0,0.00013698,2]
[420018978,1775620244690,-500.0,0.00013698,2]
[420018979,1775620244700,-500.0,0.00013698,2]
[420018980,1775620244710,-500.0,0.00013698,2]
[420018981,1775620244720,-500.45174561,0.00013698,2]
[420018982,1775620244730,-500.0,0.00013698,2]
[420018983,1775620244739,-500.0,0.00013698,2]
[420018984,1775620244749,-500.0,0.00013698,2]
[420018985,1775620244759,-500.0,0.00013698,2]
[420018986,1775620244769,-500.0,0.00013698,2]
[420018987,1775620244779,-500.0,0.00013698,2]
[420018988,1775620244788,-500.0,0.00013698,2]
[420018989,1775620244798,-500.0,0.00013698,2]
[420018990,1775620244808,-500.0,0.00013698,2]
[420018991,1775620244818,-406.01852309,0.00013698,2]
[420018992,1775620244827,-500.0,0.00013698,2]
[420018993,1775620244837,-500.0,0.00013698,2]
[420018994,1775620244846,-500.0,0.00013698,2]
[420018995,1775620244855,-500.0,0.00013698,2]
[420018996,1775620244865,-500.0,0.00013698,2]
[420018997,1775620244875,-500.0,0.00013698,2]
[420018998,1775620244885,-500.0,0.00013698,2]
[420018999,1775620244895,-500.0,0.00013698,2]
[420019000,1775620244905,-500.0,0.00013698,2]
[420019001,1775620244914,-500.0,0.00013698,2]
[420019002,1775620244923,-500.0,0.00013698,2]
[420019003,1775620244934,-500.0,0.00013698,2]
[420019004,1775620244943,-500.0,0.00013698,2]
[420019005,1775620244953,-500.0,0.00013698,2]
[420019006,1775620244962,-500.0,0.00013698,2]
[420019007,1775620244972,-500.0,0.00013698,2]
[420019008,1775620244982,-500.0,0.00013698,2]
[420019009,1775620244991,-500.0,0.00013698,2]
[420019010,1775620245001,-500.0,0.00013698,2]
[420019011,1775620245011,-500.0,0.00013698,2]
[420019012,1775620245020,-500.0,0.00013698,2]
[420019013,1775620245031,-506.80312562,0.00013698,2]
[420019014,1775620245040,-500.0,0.00013698,2]
[420019015,1775620245050,-500.0,0.00013698,2]
[420019016,1775620245060,-500.0,0.00013698,2]
[420019017,1775620245070,-500.0,0.00013698,2]
[420019018,1775620245080,-500.0,0.00013698,2]
[420019019,1775620245090,-500.0,0.00013698,2]
[420019020,1775620245100,-495.40376604,0.00013698,2]
[420019021,1775620245111,-500.0,0.00013698,2]
[420019022,1775620245120,-500.0,0.00013698,2]
[420019023,1775620245130,-500.0,0.00013698,2]
[420019024,1775620245140,-501.392489,0.00013698,2]
[420019025,1775620245150,-553.39225555,0.00013698,2]
[420019026,1775620245160,-500.0,0.00013698,2]
[420019027,1775620245169,-197.481471,0.00013698,2]
[420019028,1775620245179,-500.0,0.00013698,2]
[420019029,1775620245189,-500.0,0.00013698,2]
[420019030,1775620245198,-500.0,0.00013698,2]
[420019031,1775620245208,-500.0,0.00013698,2]
[420019032,1775620245218,-500.0,0.00013698,2]
[420019033,1775620245228,-500.0,0.00013698,2]
[420019034,1775620245237,-500.0,0.00013698,2]
[420019035,1775620245247,-500.0,0.00013698,2]
[420019036,1775620245257,-500.0,0.00013698,2]
[420019037,1775620245267,-500.0,0.00013698,2]
[420019038,1775620245277,-500.0,0.00013698,2]
[420019039,1775620245287,-500.0,0.00013698,2]
[420019040,1775620245297,-500.0,0.00013698,2]
[420019041,1775620245307,-500.0,0.00013698,2]
[420019042,1775620245316,-500.0,0.00013698,2]
[420019043,1775620245325,-500.0,0.00013698,2]
[420019044,1775620245335,-500.0,0.00013698,2]
[420019045,1775620245345,-629.72113567,0.00013698,2]
[420019046,1775620245355,-500.0,0.00013698,2]
[420019047,1775620245364,-500.0,0.00013698,2]
[420019048,1775620245374,-500.0,0.00013698,2]
[420019049,1775620245383,-500.0,0.00013698,2]
[420019050,1775620245393,-500.0,0.00013698,2]
[420019051,1775620245403,-500.0,0.00013698,2]
[420019052,1775620245413,-500.0,0.00013698,2]
[420019053,1775620245422,-500.0,0.00013698,2]
[420019054,1775620245431,-500.0,0.00013698,2]
[420019055,1775620245441,-500.0,0.00013698,2]
[420019056,1775620245451,-500.0,0.00013698,2]
[420019057,1775620245460,-150.0,0.00013699,2]
[420019058,1775620245470,-150.0,0.00013699,2]
[420019059,1775620245479,-150.0,0.00013699,2]
[420019060,1775620245488,-2003.14,0.00013699,2]
[420019061,1775620245498,-200.0,0.00013699,2]
[420019062,1775620245507,-174.943365,0.00013699,2]
[420019063,1775620245516,-151.0,0.00013699,2]
[420019064,1775620245525,-151.0,0.00013699,2]
[420019065,1775620245535,-151.0,0.00013699,2]
[420019066,1775620245544,-151.0,0.00013699,2]
[420019067,1775620245554,-2308.67,0.00013699,2]
[420019068,1775620245563,-151.0,0.00013699,2]
[420019069,1775620245572,-151.0,0.00013699,2]
[420019070,1775620245582,-151.0,0.00013699,2]
[420019071,1775620245592,-191.36,0.00013699,2]
[420019072,1775620245601,-152.285605,0.00013699,2]
[420019073,1775620245611,-151.0,0.00013699,2]
[420019074,1775620245620,-151.0,0.00013699,2]
[420019075,1775620245630,-151.0,0.00013699,2]
[420019076,1775620245640,-151.0,0.00013699,2]
[420019077,1775620245650,-151.0,0.00013699,2]
[420019078,1775620245659,-151.575895,0.00013699,2]
[420019079,1775620245669,-218.181893,0.00013699,2]
[420019080,1775620245679,-151.0,0.00013699,2]
[420019081,1775620245688,-151.0,0.00013699,2]
[420019082,1775620245697,-151.0,0.00013699,2]
[420019083,1775620245707,-293.388266,0.00013699,2]
[420019084,1775620245716,-151.0,0.00013699,2]
[420019085,1775620245727,-151.0,0.00013699,2]
[420019086,1775620245736,-151.0,0.00013699,2]
[420019087,1775620245746,-151.0,0.00013699,2]
[420019088,1775620245756,-151.0,0.00013699,2]
[420019089,1775620245766,-151.0,0.00013699,2]
[420019090,1775620245775,-151.0,0.00013699,2]
[420019091,1775620245785,-151.0,0.00013699,2]
[420019092,1775620245795,-151.0,0.00013699,2]
[420019093,1775620245804,-151.0,0.00013699,2]
[420019094,1775620245814,-151.0,0.00013699,2]
[420019095,1775620245824,-151.0,0.00013699,2]
[420019096,1775620245834,-151.0,0.00013699,2]
[420019097,1775620245844,-272.264878,0.00013699,2]
[420019098,1775620245853,-235.282447,0.00013699,2]
[420019099,1775620245863,-151.0,0.00013699,2]
[420019100,1775620245872,-151.0,0.00013699,2]
[420019101,1775620245881,-151.0,0.00013699,2]
[420019102,1775620245891,-151.0,0.00013699,2]
[420019103,1775620245900,-151.0,0.00013699,2]
[420019104,1775620245910,-152.546955,0.00013699,2]
[420019105,1775620245919,-151.0,0.00013699,2]
[420019106,1775620245929,-151.0,0.00013699,2]
[420019107,1775620245938,-226.261666,0.00013699,2]
[420019108,1775620245948,-226.261666,0.00013699,2]
[420019109,1775620245957,-226.261666,0.00013699,2]
[420019110,1775620245967,-151.0,0.00013699,2]
[420019111,1775620245976,-226.261666,0.00013699,2]
[420019112,1775620245986,-151.0,0.00013699,2]
[420019113,1775620245996,-151.0,0.00013699,2]
[420019114,1775620246006,-151.0,0.00013699,2]
[420019115,1775620246016,-151.0,0.00013699,2]
[420019116,1775620246027,-151.0,0.00013699,2]
[420019117,1775620246037,-151.0,0.00013699,2]
[420019118,1775620246046,-319.450739,0.00013699,2]
[420019119,1775620246056,-319.450739,0.00013699,2]
[420019120,1775620246066,-319.450739,0.00013699,2]
[420019121,1775620246076,-319.450739,0.00013699,2]
[420019122,1775620246086,-680.691086,0.00013699,2]
[420019123,1775620246096,-680.691086,0.00013699,2]
[420019124,1775620246106,-680.691086,0.00013699,2]
[420019125,1775620246117,-680.691086,0.00013699,2]
[420019126,1775620246127,-680.691086,0.00013699,2]
[420019127,1775620246136,-1436.269995,0.00013699,2]
[420019128,1775620246146,-680.691086,0.00013699,2]
[420019129,1775620246156,-1436.269995,0.00013699,2]
[420019130,1775620246166,-1436.269995,0.00013699,2]
[420019131,1775620246176,-680.691086,0.00013699,2]
[420019132,1775620246186,-1436.269995,0.00013699,2]
[420019133,1775620246196,-680.691086,0.00013699,2]
[420019134,1775620246205,-1436.269995,0.00013699,2]
[420019135,1775620246215,-1436.269995,0.00013699,2]
[420019136,1775620246225,-1436.269995,0.00013699,2]
[420019137,1775620246235,-1436.269995,0.00013699,2]
[420019138,1775620246244,-153.180645,0.00013699,2]
[420019139,1775620246255,-153.180645,0.00013699,2]
[420019140,1775620246264,-153.180645,0.00013699,2]
[420019141,1775620246273,-153.180645,0.00013699,2]
[420019142,1775620246283,-153.180645,0.00013699,2]
[420019143,1775620246293,-153.180645,0.00013699,2]
[420019144,1775620246303,-151.0,0.00013699,2]
[420019145,1775620246314,-281.843706,0.00013699,2]
[420019146,1775620246323,-153.180645,0.00013699,2]
[420019147,1775620246333,-284.79,0.00013699,2]
[420019148,1775620246343,-153.180645,0.00013699,2]
[420019149,1775620246353,-151.0,0.00013699,2]
[420019150,1775620246363,-396.8,0.00013699,2]
[420019151,1775620246372,-152.228117,0.00013699,2]
[420019152,1775620246382,-330.66,0.00013699,2]
[420019154,1775620246502,-151.0,0.00013699,2]
[420019155,1775620246512,-151.0,0.00013699,2]
[420019156,1775620246522,-275.55,0.00013699,2]
[420019157,1775620246532,-153.242235,0.00013699,2]
[420019158,1775620246542,-229.63,0.00013699,2]
[420019159,1775620246552,-153.242235,0.00013699,2]
[420019160,1775620246561,-153.242235,0.00013699,2]
[420019161,1775620246571,-153.242235,0.00013699,2]
[420019162,1775620246580,-151.0,0.00013699,2]
[420019163,1775620246590,-151.0,0.00013699,2]
[420019164,1775620246600,-153.242235,0.00013699,2]
[420019165,1775620246609,-153.242235,0.00013699,2]
[420019166,1775620246618,-153.242235,0.00013699,2]
[420019167,1775620246628,-153.242235,0.00013699,2]
[420019168,1775620246637,-191.36,0.00013699,2]
[420019169,1775620246647,-159.46,0.00013699,2]
[420019170,1775620246657,-166.66,0.00013699,2]
[420019171,1775620246666,-797.34,0.00013699,2]
[420019172,1775620246676,-151.0,0.00013699,2]
[420019173,1775620246685,-151.0,0.00013699,2]
[420019174,1775620246695,-175.533937,0.00013699,2]
[420019175,1775620246704,-175.533937,0.00013699,2]
[420019176,1775620246714,-175.533937,0.00013699,2]
[420019177,1775620246724,-175.533937,0.00013699,2]
[420019178,1775620246734,-151.0,0.00013699,2]
[420019179,1775620246743,-151.0,0.00013699,2]
[420019180,1775620246753,-151.0,0.00013699,2]
[420019181,1775620246763,-175.533937,0.00013699,2]
[420019182,1775620246773,-151.0,0.00013699,2]
[420019183,1775620246782,-175.533937,0.00013699,2]
[420019184,1775620246792,-151.0,0.00013699,2]
[420019185,1775620246801,-151.0,0.00013699,2]
[420019186,1775620246810,-151.0,0.00013699,2]
[420019187,1775620246820,-175.533937,0.00013699,2]
[420019188,1775620246830,-175.533937,0.00013699,2]
[420019189,1775620246840,-151.0,0.00013699,2]
[420019190,1775620246851,-151.0,0.00013699,2]
[420019191,1775620246860,-287.682203,0.00013699,2]
[420019192,1775620246871,-151.0,0.00013699,2]
[420019193,1775620246881,-151.0,0.00013699,2]
[420019194,1775620246890,-151.0,0.00013699,2]
[420019195,1775620246900,-151.0,0.00013699,2]
[420019196,1775620246910,-151.0,0.00013699,2]
[420019197,1775620246919,-151.0,0.00013699,2]
[420019198,1775620246929,-151.0,0.00013699,2]
[420019199,1775620246938,-151.0,0.00013699,2]
[420019200,1775620246948,-151.0,0.00013699,2]
[420019201,1775620246958,-151.0,0.00013699,2]
[420019202,1775620246968,-286.333865,0.00013699,2]
[420019203,1775620246978,-151.0,0.00013699,2]
[420019204,1775620246988,-151.0,0.00013699,2]
[420019205,1775620246998,-151.0,0.00013699,2]
[420019206,1775620247008,-202.615524,0.00013699,2]
[420019207,1775620247018,-151.0,0.00013699,2]
[420019208,1775620247030,-151.0,0.00013699,2]
[420019209,1775620247039,-151.0,0.00013699,2]
[420019210,1775620247049,-257.246826,0.00013699,2]
[420019211,1775620247059,-151.0,0.00013699,2]
[420019212,1775620247068,-152.416754,0.00013699,2]
[420019213,1775620247078,-151.0,0.00013699,2]
[420019214,1775620247088,-152.77125,0.00013699,2]
[420019215,1775620247098,-151.0,0.00013699,2]
[420019216,1775620247108,-151.0,0.00013699,2]